fUST/lending_fUST_20250311
["ID","MTS","AMOUNT","RATE_DAILY","PERIOD"]
[355871566,1741660166050,152.19746316,0.000399,2]
[355871571,1741660171046,152.19746312,0.00041726,28]
[355871572,1741660181060,152.19746312,0.00043553,28]
[355871577,1741660218041,9450.8497653,0.00041295,2]
[355871625,1741660232005,-416.66666667,0.00044976,2]
[355871626,1741660232015,-1623.33333483,0.00045,60]
[355871627,1741660232086,-2024.25,0.00045,60]
[355871628,1741660232098,-1352.41666517,0.00045,60]
[355871629,1741660232108,-152.19746312,0.00045379,28]
[355871630,1741660232118,-200.0,0.0004565,120]
[355871631,1741660232127,-2745.38587171,0.00046,100]
[355871670,1741660240303,-500.0,0.00046,100]
[355871671,1741660240349,-1754.61412829,0.00046,100]
[355871672,1741660240359,-500.0,0.00046136,120]
[355871673,1741660240369,-200.0,0.000462,120]
[355871674,1741660240379,-1097.07303033,0.00046329,2]
[355871675,1741660240390,-500.0,0.00046999,2]
[355871676,1741660240400,-500.0,0.00046999,2]
[355871677,1741660240410,-500.0,0.00046999,2]
[355871678,1741660240420,-434.57705323,0.00046999,2]
[355871679,1741660240430,-500.0,0.00046999,2]
[355871680,1741660240440,-500.0,0.00046999,2]
[355871681,1741660240451,-500.0,0.00046999,2]
[355871682,1741660240461,-500.0,0.00046999,2]
[355871683,1741660240472,-500.0,0.00046999,2]
[355871684,1741660240482,-500.0,0.00046999,2]
[355871685,1741660240492,-500.0,0.00046999,2]
[355871686,1741660240502,-500.0,0.00046999,2]
[355871687,1741660240514,-189.66122001,0.00046999,2]
[355871688,1741660240523,-500.0,0.00046999,2]
[355871689,1741660240533,-500.0,0.00046999,2]
[355871690,1741660240543,-500.0,0.00046999,2]
[355871691,1741660240553,-500.0,0.00046999,2]
[355871692,1741660240563,-500.0,0.00046999,2]
[355871693,1741660240572,-500.0,0.00046999,2]
[355871694,1741660240582,-500.0,0.00046999,2]
[355871695,1741660240592,-500.0,0.00046999,2]
[355871696,1741660240601,-500.0,0.00046999,2]
[355871697,1741660240611,-500.0,0.00046999,2]
[355871698,1741660240620,-500.0,0.00046999,2]
[355871699,1741660240629,-500.0,0.00046999,2]
[355871700,1741660240639,-500.0,0.00046999,2]
[355871701,1741660240648,-500.0,0.00046999,2]
[355871702,1741660240658,-500.0,0.00046999,2]
[355871703,1741660240667,-5000.0,0.00047,120]
[355871704,1741660240676,-5000.0,0.00047,120]
[355871705,1741660240686,-5000.0,0.00047,120]
[355871706,1741660240695,-3370.0,0.00047,120]
[355871707,1741660240705,-247.04,0.000471,30]
[355871708,1741660240714,-3664.42,0.000471,30]
[355871709,1741660240723,-267.40822517,0.000471,30]
[355871789,1741660246459,-55.65177483,0.000471,30]
[355871790,1741660246468,-1138.08171477,0.000472,2]
[355871805,1741660271368,2000.0,0.0004,28]
[355871806,1741660301753,2000.0,0.0004,28]
[355871808,1741660327277,2000.0,0.00042,28]
[355871809,1741660340005,3391.61024713,0.00027,60]
[355871820,1741661046897,-2000.0,0.0003,28]
[355871821,1741661046918,-2000.0,0.0003,28]
[355871822,1741661046939,-2000.0,0.0003,28]
[355871823,1741661046960,-2000.0,0.0003,28]
[355871824,1741661046981,-2000.0,0.0003,28]
[355871826,1741661134457,-3000.0,0.00032,28]
[355871827,1741661134479,-3000.0,0.00032,28]
[355871828,1741661134502,-2000.0,0.00032,28]
[355871829,1741661138121,-432.58048174,0.00031,28]
[355871830,1741661144086,-561.87092052,0.00031,28]
[355871831,1741661176488,-1005.54859774,0.00031,28]
[355871832,1741661176511,-1000.0,0.00032,28]
[355871833,1741661176533,-2000.0,0.00032,28]
[355871834,1741661176555,-2000.0,0.00032,28]
[355871835,1741661176581,-994.45140226,0.00032,28]
[355871837,1741661226111,-160.07206,0.0003589,2]
[355871838,1741661226136,-1238.7526798,0.00036621,2]
[355871839,1741661226159,-1602.61143028,0.00039195,2]
[355871840,1741661226184,-500.0,0.00039999,2]
[355871841,1741661226207,-2622.0,0.0004,10]
[355871842,1741661226230,-570.80351571,0.0004,5]
[355871843,1741661226250,-500.0,0.0004,5]
[355871844,1741661226270,-500.0,0.0004,5]
[355871845,1741661226291,-500.0,0.0004,5]
[355871846,1741661226312,-500.0,0.00040589,12]
[355871847,1741661226332,-500.0,0.00041373,2]
[355871848,1741661226355,-167.216,0.00042029,63]
[355871849,1741661226375,-283.973491,0.00042373,120]
[355871850,1741661226396,-500.0,0.00042507,12]
[355871851,1741661226416,-160.07206,0.0004263,2]
[355871852,1741661226437,-500.0,0.00043504,12]
[355871853,1741661226459,-500.0,0.00043587,2]
[355871854,1741661226482,-500.0,0.00043587,2]
[355871855,1741661226503,-422.75461394,0.00043587,2]
[355871856,1741661226525,-500.0,0.00043587,2]
[355871857,1741661226546,-500.0,0.00043587,2]
[355871858,1741661226570,-500.0,0.00043587,2]
[355871859,1741661226593,-500.0,0.00043587,2]
[355871860,1741661226614,-500.0,0.00043587,2]
[355871861,1741661226636,-265.78777056,0.00043587,2]
[355871862,1741661229085,-234.21222944,0.00043587,2]
[355871863,1741661229109,-500.0,0.00043587,2]
[355871864,1741661229138,-500.0,0.00043587,2]
[355871865,1741661229163,-500.0,0.00043587,2]
[355871866,1741661229187,-500.0,0.00043587,2]
[355871867,1741661229212,-500.0,0.00043587,2]
[355871868,1741661229236,-500.0,0.00043587,2]
[355871869,1741661229260,-500.0,0.00043587,2]
[355871870,1741661229284,-500.0,0.00043587,2]
[355871871,1741661229307,-500.0,0.00043587,2]
[355871872,1741661229330,-500.0,0.00043587,2]
[355871873,1741661229355,-500.0,0.00043587,2]
[355871874,1741661229379,-500.0,0.00043587,2]
[355871875,1741661229403,-500.0,0.00043587,2]
[355871876,1741661229426,-500.0,0.00043587,2]
[355871877,1741661229448,-500.0,0.00043587,2]
[355871878,1741661229472,-500.0,0.00043587,2]
[355871879,1741661229496,-500.0,0.00043587,2]
[355871880,1741661229520,-500.0,0.00043587,2]
[355871881,1741661229544,-500.0,0.00043587,2]
[355871882,1741661229567,-500.0,0.00043587,2]
[355871883,1741661229592,-500.0,0.00043587,2]
[355871884,1741661229616,-500.0,0.00043587,2]
[355871885,1741661229639,-500.0,0.00043587,2]
[355871886,1741661229663,-500.0,0.00043587,2]
[355871887,1741661229685,-500.0,0.00043587,2]
[355871888,1741661229708,-500.0,0.00043587,2]
[355871889,1741661229731,-500.0,0.00043587,2]
[355871890,1741661229755,-500.0,0.00043587,2]
[355871891,1741661229780,-500.0,0.00043587,2]
[355871892,1741661229803,-500.0,0.00043587,2]
[355871893,1741661229828,-500.0,0.00043587,2]
[355871894,1741661229852,-500.0,0.00043587,2]
[355871895,1741661229875,-500.0,0.00043587,2]
[355871896,1741661229898,-500.0,0.00043587,2]
[355871897,1741661229922,-500.0,0.00043587,2]
[355871898,1741661229945,-500.0,0.00043587,2]
[355871899,1741661229968,-500.0,0.00043587,2]
[355871900,1741661229993,-500.0,0.00043587,2]
[355871901,1741661230021,-362.41363135,0.00043587,2]
[355871902,1741661230046,-500.0,0.00043587,2]
[355871903,1741661230070,-472.75461393,0.00043587,2]
[355871904,1741661230094,-500.0,0.00043587,2]
[355871905,1741661230123,-500.0,0.00043587,2]
[355871906,1741661230147,-500.0,0.00043587,2]
[355871907,1741661230170,-500.0,0.00043587,2]
[355871908,1741661230194,-500.0,0.00043587,2]
[355871909,1741661230219,-286.24136313,0.00043587,2]
[355871910,1741661230242,-500.0,0.00043587,2]
[355871911,1741661230264,-500.0,0.00043587,2]
[355871912,1741661230287,-500.0,0.00043587,2]
[355871913,1741661230310,-500.0,0.00043587,2]
[355871914,1741661230333,-500.0,0.00043587,2]
[355871915,1741661230357,-500.0,0.00043587,2]
[355871916,1741661230379,-500.0,0.00043587,2]
[355871917,1741661230402,-160.0,0.00043588,2]
[355871918,1741661230425,-15572.92107546,0.00043588,2]
[355871919,1741661230446,-500.0,0.000436,10]
[355871920,1741661230468,-506.56417529,0.000436,10]
[355871921,1741661230491,-173.673221,0.0004397,2]
[355871922,1741661230512,-173.673221,0.0004397,61]
[355871923,1741661230533,-173.673221,0.0004397,120]
[355871924,1741661230555,-4482.558,0.00044,80]
[355871925,1741661230576,-1602.61143028,0.00044195,2]
[355871926,1741661230600,-198.38506888,0.00044878,2]
[355871927,1741661230621,-500.0,0.00044986,12]
[355871928,1741661230642,-500.0,0.00045014,12]
[355871929,1741661230667,-1000.0,0.00045479,10]
[355871930,1741661230688,-1000.0,0.00045479,10]
[355871931,1741661230710,-1000.0,0.00045479,10]
[355871932,1741661230731,-5000.0,0.00046,90]
[355871933,1741661230943,-435.72652366,0.00046205,2]
[355871934,1741661230966,-500.0,0.00046575,120]
[355871935,1741661230989,-686.55720764,0.00046756,2]
[355871936,1741661231012,-2000.0,0.000468,3]
[355871937,1741661231034,-1000.0,0.000468,4]
[355871938,1741661231059,-173.98531387,0.0004688,2]
[355871939,1741661231081,-377.13208451,0.00046955,2]
[355871940,1741661231106,-1763.3203322,0.0004696,4]
[355871941,1741661231134,-2114.02443812,0.00046964,23]
[355871942,1741661231157,-500.0,0.0004697,2]
[355871943,1741661231180,-500.0,0.0004697,2]
[355871944,1741661231203,-462.74414582,0.0004697,2]
[355871945,1741661231226,-22991.9842577,0.0004697,4]
[355871946,1741661231247,-3526.6406644,0.0004697,4]
[355871947,1741661231268,-230.87729871,0.00046979,31]
[355871948,1741661231291,-197.39516293,0.00046979,120]
[355871949,1741661231313,-7006.23,0.0004698,120]
[355871950,1741661231334,-68975.9527732,0.0004698,4]
[355871951,1741661231357,-5289.9609966,0.0004698,4]
[355871952,1741661231379,-503.02538616,0.00046989,7]
[355871953,1741661231401,-44131.75458556,0.0004699,2]
[355871954,1741661254083,-500.0,0.000436,10]
[355871955,1741661254105,-269.49312042,0.000436,7]
[355871956,1741661254131,-500.0,0.000436,10]
[355871957,1741661254154,-500.0,0.000436,10]
[355871958,1741661254180,-2918.31,0.0004698,10]
[355871959,1741661254202,-2431.92,0.0004698,10]
[355871960,1741661254224,-102000.71315866,0.0004699,2]
[355871961,1741661345091,-1025.0,0.00042,28]
[355871962,1741661345112,-2000.0,0.00042,28]
[355871963,1741661345133,-2000.0,0.00042,28]
[355871964,1741661345157,-160.0,0.00043588,2]
[355871965,1741661347417,2000.0,0.00042,28]
[355871966,1741661352434,2000.0,0.00042,28]
[355871969,1741661402006,172.0537067,0.0004307,2]
[355871970,1741661419613,240.0,0.00025,10]
[355871971,1741661431435,3000.0,0.00043,31]
[355872107,1741661438281,-48.06449797,0.0004489,2]
[355872112,1741661440314,-486.13931213,0.0004489,2]
[355872113,1741661440324,-500.0,0.00045932,12]
[355872114,1741661440334,-392.74019212,0.0004688,120]
[355872115,1741661440344,-810.1427074,0.0004689,28]
[355872116,1741661440353,-6714.31,0.0004698,120]
[355872117,1741661440363,-416.66666667,0.00046987,2]
[355872118,1741661440373,-2804.49404158,0.0004699,2]
[355872132,1741661443310,-121.35135697,0.0004699,2]
[355872145,1741661446304,-1810.71833848,0.0004699,2]
[355872149,1741661446524,-1302.72634064,0.0004699,2]
[355872150,1741661446537,-151.0,0.0004699,120]
[355872151,1741661446547,-151.0,0.0004699,120]
[355872152,1741661446556,-61.27850617,0.0004699,120]
[355872153,1741661447578,-89.72149383,0.0004699,120]
[355872154,1741661447593,-151.0,0.0004699,120]
[355872155,1741661447608,-151.0,0.0004699,120]
[355872156,1741661447624,-151.0,0.0004699,120]
[355872157,1741661447639,-151.0,0.0004699,120]
[355872158,1741661447655,-151.0,0.0004699,120]
[355872159,1741661447670,-151.0,0.0004699,120]
[355872160,1741661447686,-151.0,0.0004699,120]
[355872161,1741661447702,-151.0,0.0004699,120]
[355872162,1741661447717,-151.0,0.0004699,120]
[355872163,1741661447732,-151.0,0.0004699,120]
[355872164,1741661447748,-151.0,0.0004699,120]
[355872165,1741661447764,-151.0,0.0004699,120]
[355872166,1741661447779,-151.0,0.0004699,120]
[355872167,1741661447794,-151.0,0.0004699,120]
[355872168,1741661447809,-151.0,0.0004699,120]
[355872169,1741661447824,-151.0,0.0004699,120]
[355872170,1741661447839,-151.0,0.0004699,120]
[355872171,1741661447854,-151.0,0.0004699,120]
[355872172,1741661447871,-151.0,0.0004699,120]
[355872173,1741661447886,-151.0,0.0004699,120]
[355872174,1741661447903,-151.0,0.0004699,120]
[355872175,1741661447918,-151.0,0.0004699,120]
[355872176,1741661447933,-151.0,0.0004699,120]
[355872177,1741661447948,-151.0,0.0004699,120]
[355872178,1741661447964,-250.0,0.000471,30]
[355872179,1741661447980,-250.0,0.000472,7]
[355872180,1741661447994,-161.468327,0.00047336,30]
[355872181,1741661448009,-686.55720764,0.00047427,2]
[355872182,1741661448025,-2210.74798178,0.00047432,2]
[355872183,1741661448041,-810.14270739,0.000475,28]
[355872184,1741661448057,-172.92,0.0004777,2]
[355872185,1741661448073,-172.92,0.0004777,2]
[355872186,1741661448089,-172.92,0.0004777,2]
[355872187,1741661448105,-500.0,0.00047779,2]
[355872188,1741661448120,-500.0,0.00047779,2]
[355872189,1741661448137,-407.55145428,0.00047779,2]
[355872190,1741661448152,-500.0,0.00047779,2]
[355872191,1741661448169,-500.0,0.00047779,2]
[355872192,1741661448189,-585.1031278,0.00047779,2]
[355872193,1741661448203,-13157.83574715,0.0004778,120]
[355872194,1741661491429,727.93084177,0.00043,31]
[355872195,1741661491454,2903.39011513,0.00043,31]
[355872196,1741661511318,401.23665301,0.00043,31]
[355872197,1741661511340,2598.76334699,0.00043,31]
[355872199,1741661535088,1293.5213646,0.00038366,7]
[355872200,1741661535347,500.0,0.0003,30]
[355872201,1741661535944,500.0,0.0003,30]
[355872202,1741661536107,421.64687627,0.00028011,2]
[355872203,1741662035446,200.0,0.00027,120]
[355872204,1741662493136,406.1358734,0.000249,2]
[355872205,1741662554146,-311.80473785,0.00028011,2]
[355872206,1741662554168,-406.1358734,0.000299,2]
[355872207,1741662554433,-641.16257818,0.0003,30]
[355872208,1741662554463,-930.01257584,0.0003,30]
[355872209,1741662554485,-200.0,0.000323,120]
[355872210,1741662554513,-160.07206,0.0003589,2]
[355872211,1741662554534,-350.70086,0.000376,120]
[355872212,1741662554560,-183.9347476,0.00038618,2]
[355872213,1741662554583,-24900.0,0.00039313,2]
[355872214,1741662554604,-160.0,0.00043625,2]
[355872215,1741662555092,-160.07206,0.00043667,2]
[355872232,1741662632460,-160.0,0.00046256,3]
[355872234,1741662632470,-2317.84,0.0004679,10]
[355872236,1741662632480,-525.59820456,0.00046794,2]
[355872238,1741662632490,-305.60303381,0.00046799,31]
[355872240,1741662632500,-223.58285512,0.00046799,120]
[355872242,1741662632510,-25244.95258846,0.000468,47]
[355872244,1741662632521,-50601.5857262,0.000468,120]
[355872260,1741662638322,-1931.53,0.0004679,10]
[355872261,1741662638331,-416.06855302,0.00046799,120]
[355872262,1741662638341,-500.0,0.00046799,2]
[355872263,1741662638351,-500.0,0.00046799,2]
[355872264,1741662638361,-500.0,0.00046799,2]
[355872265,1741662638370,-500.0,0.00046799,2]
[355872266,1741662638380,-500.0,0.00046799,2]
[355872267,1741662638390,-500.0,0.00046799,2]
[355872268,1741662638399,-487.34634882,0.00046799,2]
[355872270,1741662638409,-500.0,0.00046799,2]
[355872271,1741662638418,-335.69076428,0.00046799,2]
[355872279,1741662640166,169.0,0.00043,90]
[355872285,1741662640503,170.0,0.00044877,90]
[355872286,1741662640574,-439.87343067,0.00046694,120]
[355872287,1741662640584,-164.30923572,0.00046799,2]
[355872288,1741662640593,-180.9399264,0.00046799,2]
[355872339,1741662643980,-109.95278428,0.00046799,2]
[355872344,1741663542152,-2906.63,0.000411,2]
[355872345,1741663542174,-351.89874456,0.00042089,120]
[355872346,1741663542196,-424.3135978,0.00042189,2]
[355872347,1741663542218,-351.89874453,0.00044213,120]
[355872348,1741663542499,-550.0,0.00044699,5]
[355872349,1741663542521,-334.925681,0.000447,2]
[355872350,1741663649306,-160.02795,0.0003589,2]
[355872351,1741663649329,-126.12705,0.00044315,2]
[355872356,1741663746119,-1887.42296062,0.0003,60]
[355872357,1741663746140,-169.41502415,0.00038,2]
[355872358,1741663746161,-400.0,0.00039999,5]
[355872359,1741663746182,-4426.20435529,0.0004,120]
[355872360,1741663759091,-8175.7756202,0.0004,120]
[355872365,1741663766333,-5709.12307572,0.0004,120]
[355872366,1741663768640,-11961.52861513,0.0004,120]
[355872367,1741663768662,-5804.17069049,0.0004,30]
[355872368,1741663770130,-67564.95746216,0.0004,30]
[355872414,1741663832805,-686.62398619,0.000399,2]
[355872416,1741663832815,-618.6049974,0.00039973,5]
[355872418,1741663832826,-500.0,0.00039973,5]
[355872419,1741663832836,-500.0,0.00039973,5]
[355872420,1741663832846,-299.14542031,0.00039973,5]
[355872421,1741663832855,-500.0,0.00039973,5]
[355872422,1741663832866,-500.0,0.00039973,5]
[355872424,1741663832876,-500.0,0.00039973,5]
[355872426,1741663832888,-500.0,0.00039973,5]
[355872428,1741663832899,-419.94782723,0.00039973,5]
[355872430,1741663832909,-500.0,0.00039973,5]
[355872432,1741663832919,-500.0,0.00039973,2]
[355872434,1741663832931,-169.63,0.0003999,2]
[355872436,1741663832941,-337.14654872,0.00039999,31]
[355872438,1741663832952,-456.06781916,0.00039999,31]
[355872440,1741663832964,-164.92848947,0.00039999,31]
[355872442,1741663832974,-45682.14604951,0.0004,30]
[355872452,1741663838580,-500.0,0.00039999,2]
[355872453,1741663838591,-500.0,0.00039999,2]
[355872454,1741663838602,-500.0,0.00039999,2]
[355872455,1741663838613,-500.0,0.00039999,2]
[355872456,1741663838623,-500.0,0.00039999,2]
[355872457,1741663838633,-211.59840912,0.00039999,2]
[355872458,1741663838643,-7278.93593815,0.0004,30]
[355872459,1741663838782,-254169.17384201,0.0004,30]
[355872460,1741663838793,-4435.78,0.0004,30]
[355872461,1741663838804,-242.21,0.0004,30]
[355872462,1741663838815,-3822.85,0.0004,30]
[355872463,1741663838827,-1376.94,0.0004,30]
[355872464,1741663838838,-329.92,0.0004,30]
[355872465,1741663838849,-686.62398613,0.00041444,28]
[355872466,1741663838860,-165.68521461,0.00042499,2]
[355872467,1741663838870,-525.49,0.000425,30]
[355872468,1741663838883,-480.01982546,0.00042599,2]
[355872469,1741663838893,-686.62398613,0.00042988,28]
[355872470,1741663838907,-33.9009,0.00044315,2]
[355872471,1741663838918,-5000.0,0.000445,120]
[355872472,1741663838928,-49999.99999901,0.000445,8]
[355872473,1741663838938,-686.62398613,0.00044532,28]
[355872474,1741663838948,-2000.0,0.0004457,120]
[355872475,1741663838961,-2000.0,0.0004457,120]
[355872476,1741663838971,-2000.0,0.0004457,120]
[355872477,1741663838982,-10000.77,0.00045,120]
[355872478,1741663838991,-391.0,0.00045,90]
[355872479,1741663839001,-6232.14,0.00045,7]
[355872480,1741663839012,-505.3914575,0.00045,10]
[355872481,1741663839022,-507.34435757,0.00045,10]
[355872482,1741663839031,-500.0,0.00045,10]
[355872483,1741663839042,-500.0,0.00045,10]
[355872484,1741663839051,-500.0,0.00045,10]
[355872485,1741663839062,-500.0,0.00045,10]
[355872486,1741663839072,-500.0,0.00045,10]
[355872487,1741663839081,-500.0,0.00045,10]
[355872488,1741663839091,-500.0,0.00045,10]
[355872489,1741663839100,-500.0,0.00045,10]
[355872490,1741663839110,-520.17996146,0.00045,10]
[355872491,1741663839120,-500.0,0.00045,10]
[355872492,1741663839129,-500.0,0.00045,10]
[355872493,1741663839138,-500.0,0.00045,10]
[355872494,1741663839148,-500.0,0.00045,4]
[355872495,1741663839157,-1376.94,0.00045,30]
[355872496,1741663839167,-500.0,0.00045,10]
[355872497,1741663839176,-391.0858765,0.00045,10]
[355872498,1741663839185,-504.76362318,0.00045,10]
[355872499,1741663839194,-500.0,0.00045,2]
[355872500,1741663839205,-329.92,0.00045,30]
[355872501,1741663839215,-150.0,0.00045112,14]
[355872502,1741663839224,-289.61861821,0.00045112,14]
[355872503,1741663839234,-691.0939181,0.00045218,2]
[355872504,1741663839243,-160.0,0.00045218,2]
[355872505,1741663839253,-4435.78,0.000453,30]
[355872506,1741663839263,-242.21,0.000453,30]
[355872507,1741663839272,-3822.85,0.000453,30]
[355872508,1741663839281,-1006.04444976,0.00045452,10]
[355872509,1741663839290,-1000.0,0.00045452,7]
[355872510,1741663839300,-1000.0,0.00045452,10]
[355872511,1741663839309,-528.45369435,0.00045452,10]
[355872512,1741663839318,-1000.0,0.00045452,10]
[355872513,1741663839327,-1000.0,0.00045452,10]
[355872514,1741663839337,-1000.0,0.00045452,10]
[355872515,1741663839347,-1000.0,0.00045452,2]
[355872516,1741663839357,-79999.999999,0.000455,8]
[355872517,1741663839366,-391.0,0.00045685,90]
[355872518,1741663839376,-525.49,0.000457,30]
[355872519,1741663839385,-1000.0,0.000458,5]
[355872520,1741663839395,-1499.99,0.00045846,120]
[355872521,1741663839404,-499.99,0.00045846,120]
[355872522,1741663839413,-1000.02,0.00045846,120]
[355872523,1741663839423,-686.62398613,0.00046075,28]
[355872524,1741663839433,-150.0,0.00046132,14]
[355872525,1741663839442,-150.0,0.00046132,14]
[355872526,1741663839452,-1376.94,0.000462,30]
[355872527,1741663839461,-329.92,0.000462,30]
[355872528,1741663839471,-952.71277666,0.00046389,2]
[355872529,1741663839480,-716.21616889,0.00046489,2]
[355872530,1741663839489,-30293.65819,0.00046499,30]
[355872531,1741663839498,-67432.62133401,0.000465,8]
[355872532,1741663839508,-1963.21834914,0.00046566,19]
[355872533,1741663839517,-242.21,0.000466,30]
[355872534,1741663839526,-3822.85,0.000466,30]
[355872535,1741663839535,-1431.49086443,0.00046668,4]
[355872536,1741663839544,-1431.49086443,0.00046668,4]
[355872537,1741663839554,-505.50999603,0.00046673,10]
[355872538,1741663839563,-501.24900479,0.00046673,7]
[355872539,1741663839572,-22265.7241214,0.00046678,4]
[355872540,1741663839581,-66797.1723641,0.00046678,4]
[355872541,1741663839591,-4294.47259329,0.00046678,4]
[355872542,1741663839600,-4294.47259329,0.00046678,4]
[355872543,1741663839609,-22265.7241214,0.00046688,4]
[355872544,1741663839619,-1431.49086443,0.00046688,4]
[355872545,1741663839628,-111328.620607,0.00046689,4]
[355872546,1741663839638,-7157.45432215,0.00046689,4]
[355872547,1741663839647,-6434.54,0.00046697,120]
[355872548,1741663839657,-55555.0,0.00046698,120]
[355872549,1741663839666,-222000.0,0.00046699,2]
[355872550,1741663839675,-151.0,0.00046699,120]
[355872551,1741663839685,-151.0,0.00046699,120]
[355872552,1741663839695,-151.0,0.00046699,120]
[355872553,1741663839706,-412.0976968,0.000467,120]
[355872554,1741663839715,-10655.30035521,0.000467,2]
[355872555,1741663839725,-4435.78,0.000467,30]
[355872556,1741663839735,-500.0,0.00046773,10]
[355872557,1741663839744,-500.0,0.00046773,10]
[355872558,1741663839754,-500.0,0.00046773,10]
[355872559,1741663839763,-506.66135857,0.00046773,10]
[355872560,1741663839773,-500.0,0.00046773,10]
[355872561,1741663839782,-507.07203192,0.00046773,10]
[355872562,1741663839791,-500.0,0.00046773,10]
[355872563,1741663839801,-500.0,0.00046773,10]
[355872564,1741663839810,-500.0,0.00046773,10]
[355872565,1741663839820,-290.03166611,0.00046773,10]
[355872566,1741663839829,-1431.49086443,0.0004678,4]
[355872567,1741663839839,-167.21628969,0.00046789,78]
[355872568,1741663839848,-777.473454,0.0004679,120]
[355872569,1741663839858,-777.473454,0.0004679,120]
[355872570,1741663839868,-151.0,0.0004679,120]
[355872571,1741663839882,-22265.7241214,0.0004679,4]
[355872572,1741663839892,-151.0,0.0004679,120]
[355872573,1741663839902,-7157.45432215,0.0004679,4]
[355872574,1741663839912,-154.548024,0.0004679,120]
[355872575,1741663839923,-151.0,0.0004679,120]
[355872576,1741663839933,-151.0,0.0004679,120]
[355872577,1741663839943,-151.0,0.0004679,120]
[355872578,1741663839957,-151.0,0.0004679,120]
[355872579,1741663839968,-112355.04871411,0.000468,120]
[355872580,1741663839979,-1000.0,0.000468,120]
[355872581,1741663839988,-151.0,0.000468,110]
[355872582,1741663839998,-264.7541,0.000468,120]
[355872583,1741663840007,-264.7541,0.000468,120]
[355872584,1741663840017,-188.057453,0.000468,120]
[355872585,1741663840028,-151.0,0.000468,120]
[355872586,1741663840038,-151.0,0.000468,120]
[355872587,1741663840047,-151.0,0.000468,120]
[355872588,1741663840057,-151.0,0.000468,120]
[355872590,1741663840067,-151.0,0.000468,120]
[355872591,1741663840076,-777.473454,0.000468,120]
[355872592,1741663840086,-777.473454,0.000468,120]
[355872593,1741663840095,-303.357188,0.000468,120]
[355872594,1741663840104,-303.357188,0.000468,120]
[355872595,1741663840114,-151.0,0.000468,120]
[355872597,1741663840123,-815443.41781912,0.000468,30]
[355872599,1741663840133,-151.0,0.000468,120]
[355872602,1741663840142,-151.0,0.000468,120]
[355872603,1741663840152,-525.49,0.000468,30]
[355872604,1741663840162,-151.0,0.000468,120]
[355872605,1741663840172,-151.668791,0.000468,120]
[355872606,1741663840181,-151.0,0.000468,120]
[355872608,1741663840191,-206.243942,0.000468,120]
[355872610,1741663840200,-3337.1854024,0.00046823,4]
[355872611,1741663840210,-151.0,0.0004699,120]
[355872612,1741663840219,-151.0,0.0004699,120]
[355872613,1741663840229,-151.0,0.0004699,120]
[355872614,1741663840239,-151.0,0.0004699,120]
[355872615,1741663840248,-500.0,0.00046999,120]
[355872616,1741663840258,-271.890604,0.00046999,30]
[355872617,1741663840268,-271.890604,0.00046999,30]
[355872618,1741663840277,-151.0,0.00046999,120]
[355872619,1741663840287,-849.57,0.00046999,60]